[Event "Titled Tuesday Blitz March 14 Late 2023"]
[White "Smith, Garrett L"]
[Black "Burke, Paul"]
[WhiteFideId "2024829"]
[BlackFideId "2605767"]
[WhiteElo "2282"]
[BlackElo "1865"]
[Result "1-0"]
[Round "09"]
[TimeControl "180+2"]
[Date "2023.03.14"]
[WhiteClock "0:00:53"]
[BlackClock "0:00:03"]

1. e4 {[%clk 0:03:00]}  e5 {[%clk 0:01:50]} 2. Nf3 {[%clk 0:02:01]}  Nc6 {[%clk 0:01:49]} 3. Bc4 {[%clk 0:02:02]}  Be7 {[%clk 0:01:49]} 4. O-O {[%clk 0:02:01]}  Nf6 {[%clk 0:01:49]} 5. Re1 {[%clk 0:02:00]}  Nxe4 {[%clk 0:01:44]} 6. Rxe4 {[%clk 0:01:52]}  d5 {[%clk 0:01:42]} 7. Bxd5 {[%clk 0:01:52]}  Qxd5 {[%clk 0:01:42]} 8. Nc3 {[%clk 0:01:53]}  Qd8 {[%clk 0:01:41]} 9. h3 {[%clk 0:01:44]}  O-O {[%clk 0:01:38]} 10. d3 {[%clk 0:01:45]}  f5 {[%clk 0:01:36]} 11. Re1 {[%clk 0:01:42]}  Bf6 {[%clk 0:01:37]} 12. Bd2 {[%clk 0:01:38]}  Kh8 {[%clk 0:00:44]} 13. a4 {[%clk 0:01:26]}  Be6 {[%clk 0:00:29]} 14. a5 {[%clk 0:01:26]}  h6 {[%clk 0:00:24]} 15. a6 {[%clk 0:01:23]}  b6 {[%clk 0:00:21]} 16. Ra4 {[%clk 0:01:22]}  Bf7 {[%clk 0:00:12]} 17. Nh2 {[%clk 0:01:07]}  Bg6 {[%clk 0:00:10]} 18. Ne2 {[%clk 0:01:00]}  e4 {[%clk 0:00:05]} 19. dxe4 {[%clk 0:00:53]}  fxe4 {[%clk 0:00:03]} 20. Bc3 {[%clk 0:00:53]} 1-0


[Site "https://www.chess.com"]

[Event "Titled Tuesday Blitz March 14 Late 2023"]
[White "Antonio, Jorge Carlos"]
[Black "Vargas Pereda, Jesus Manue"]
[WhiteFideId "113190"]
[BlackFideId "5115710"]
[WhiteElo "2247"]
[BlackElo "1914"]
[Result "0-1"]
[Round "09"]
[TimeControl "180+2"]
[Date "2023.03.14"]
[WhiteClock "0:01:01"]
[BlackClock "0:01:46"]

1. d4 {[%clk 0:03:00]}  d5 {[%clk 0:02:57]} 2. Nf3 {[%clk 0:03:00]}  Nf6 {[%clk 0:02:57]} 3. Bf4 {[%clk 0:03:00]}  c5 {[%clk 0:02:57]} 4. e3 {[%clk 0:02:58]}  Nc6 {[%clk 0:02:56]} 5. c3 {[%clk 0:02:58]}  Qb6 {[%clk 0:02:54]} 6. Qb3 {[%clk 0:02:57]}  c4 {[%clk 0:02:54]} 7. Qxb6 {[%clk 0:02:53]}  axb6 {[%clk 0:02:54]} 8. Nbd2 {[%clk 0:02:48]}  b5 {[%clk 0:02:53]} 9. Be2 {[%clk 0:02:40]}  e6 {[%clk 0:02:52]} 10. O-O {[%clk 0:02:40]}  b4 {[%clk 0:02:52]} 11. Ne5 {[%clk 0:02:38]}  Nxe5 {[%clk 0:02:42]} 12. Bxe5 {[%clk 0:02:33]}  Nd7 {[%clk 0:02:42]} 13. Bg3 {[%clk 0:02:30]}  b5 {[%clk 0:02:41]} 14. e4 {[%clk 0:02:29]}  Bb7 {[%clk 0:02:41]} 15. Bf3 {[%clk 0:02:27]}  dxe4 {[%clk 0:02:38]} 16. Bxe4 {[%clk 0:02:26]}  Bxe4 {[%clk 0:02:38]} 17. Nxe4 {[%clk 0:02:25]}  Be7 {[%clk 0:02:38]} 18. Nd6+ {[%clk 0:02:23]}  Bxd6 {[%clk 0:02:34]} 19. Bxd6 {[%clk 0:02:22]}  bxc3 {[%clk 0:02:35]} 20. bxc3 {[%clk 0:02:22]}  Nf6 {[%clk 0:02:26]} 21. f3 {[%clk 0:02:20]}  Nd5 {[%clk 0:02:24]} 22. Rfc1 {[%clk 0:02:14]}  Kd7 {[%clk 0:02:24]} 23. Bc5 {[%clk 0:02:11]}  Ra4 {[%clk 0:02:18]} 24. a3 {[%clk 0:02:08]}  Rha8 {[%clk 0:02:18]} 25. Rab1 {[%clk 0:02:00]}  Kc6 {[%clk 0:02:12]} 26. Kf2 {[%clk 0:01:57]}  Rxa3 {[%clk 0:01:55]} 27. Bxa3 {[%clk 0:01:55]}  Rxa3 {[%clk 0:01:53]} 28. Rb2 {[%clk 0:01:21]}  Rxc3 {[%clk 0:01:47]} 29. Rxc3 {[%clk 0:01:06]}  Nxc3 {[%clk 0:01:47]} 30. Ke3 {[%clk 0:01:01]}  Nd1+ {[%clk 0:01:46]} 0-1


[Site "https://www.chess.com"]

[Event "Titled Tuesday Blitz March 14 Late 2023"]
[White "Tarnowska, Aleksandra"]
[Black "Friedel, Tom"]
[WhiteFideId "1180967"]
[BlackFideId "2002108"]
[WhiteElo "1776"]
[BlackElo "2264"]
[Result "0-1"]
[Round "09"]
[TimeControl "180+2"]
[Date "2023.03.14"]
[WhiteClock "0:00:13"]
[BlackClock "0:00:28"]

1. e4 {[%clk 0:03:00]}  c6 {[%clk 0:02:59]} 2. d4 {[%clk 0:03:00]}  d5 {[%clk 0:03:00]} 3. Nc3 {[%clk 0:03:01]}  dxe4 {[%clk 0:03:00]} 4. Nxe4 {[%clk 0:03:02]}  Nf6 {[%clk 0:03:00]} 5. Nxf6+ {[%clk 0:03:02]}  exf6 {[%clk 0:03:01]} 6. Nf3 {[%clk 0:03:02]}  Bd6 {[%clk 0:03:01]} 7. Be3 {[%clk 0:03:03]}  O-O {[%clk 0:03:00]} 8. Bd3 {[%clk 0:03:03]}  Re8 {[%clk 0:02:59]} 9. Qd2 {[%clk 0:03:03]}  Bg4 {[%clk 0:02:54]} 10. h3 {[%clk 0:03:02]}  Bxf3 {[%clk 0:02:54]} 11. gxf3 {[%clk 0:03:03]}  Nd7 {[%clk 0:02:49]} 12. O-O-O {[%clk 0:03:00]}  Nf8 {[%clk 0:02:45]} 13. h4 {[%clk 0:02:58]}  Qd7 {[%clk 0:02:37]} 14. h5 {[%clk 0:02:54]}  f5 {[%clk 0:02:31]} 15. Rdg1 {[%clk 0:02:44]}  Rad8 {[%clk 0:02:10]} 16. Kb1 {[%clk 0:02:32]}  f4 {[%clk 0:02:01]} 17. Bxf4 {[%clk 0:02:22]}  Bxf4 {[%clk 0:02:01]} 18. Qxf4 {[%clk 0:02:23]}  Qxd4 {[%clk 0:02:02]} 19. Qg3 {[%clk 0:02:00]}  c5 {[%clk 0:01:40]} 20. a3 {[%clk 0:01:32]}  c4 {[%clk 0:01:36]} 21. Rh4 {[%clk 0:01:30]}  Qf6 {[%clk 0:01:09]} 22. Rxc4 {[%clk 0:01:22]}  Ne6 {[%clk 0:00:59]} 23. h6 {[%clk 0:01:04]}  g6 {[%clk 0:00:59]} 24. Rf4 {[%clk 0:01:00]}  Qe5 {[%clk 0:00:52]} 25. Rb4 {[%clk 0:00:46]}  Qxg3 {[%clk 0:00:40]} 26. fxg3 {[%clk 0:00:44]}  Nc5 {[%clk 0:00:41]} 27. Be4 {[%clk 0:00:30]}  b6 {[%clk 0:00:39]} 28. Bc6 {[%clk 0:00:16]}  Re3 {[%clk 0:00:36]} 29. Rf4 {[%clk 0:00:15]}  f5 {[%clk 0:00:33]} 30. g4 {[%clk 0:00:14]}  Ne6 {[%clk 0:00:29]} 31. Rb4 {[%clk 0:00:14]}  f4 {[%clk 0:00:28]} 32. Bb5 {[%clk 0:00:10]}  Ng5 {[%clk 0:00:27]} 33. Bc4+ {[%clk 0:00:10]}  Kf8 {[%clk 0:00:26]} 34. Ra4 {[%clk 0:00:07]}  Nxf3 {[%clk 0:00:24]} 35. Rc1 {[%clk 0:00:02]}  Nd2+ {[%clk 0:00:24]} 36. Ka2 {[%clk 0:00:02]}  Nxc4 {[%clk 0:00:24]} 37. Rxc4 {[%clk 0:00:03]}  f3 {[%clk 0:00:24]} 38. Rf4+ {[%clk 0:00:03]}  Ke7 {[%clk 0:00:25]} 39. Rf1 {[%clk 0:00:04]}  Rf8 {[%clk 0:00:24]} 40. Rd4 {[%clk 0:00:03]}  f2 {[%clk 0:00:23]} 41. c3 {[%clk 0:00:03]}  Re1 {[%clk 0:00:23]} 42. Rd1 {[%clk 0:00:02]}  Rxd1 {[%clk 0:00:22]} 43. Rxd1 {[%clk 0:00:01]}  f1=Q {[%clk 0:00:23]} 44. Rxf1 {[%clk 0:00:02]}  Rxf1 {[%clk 0:00:23]} 45. g5 {[%clk 0:00:02]}  Rg1 {[%clk 0:00:23]} 46. a4 {[%clk 0:00:02]}  Rxg5 {[%clk 0:00:24]} 47. b4 {[%clk 0:00:02]}  Rh5 {[%clk 0:00:24]} 48. Ka3 {[%clk 0:00:03]}  Rxh6 {[%clk 0:00:24]} 49. a5 {[%clk 0:00:03]}  bxa5 {[%clk 0:00:25]} 50. bxa5 {[%clk 0:00:04]}  Rh4 {[%clk 0:00:25]} 51. Kb3 {[%clk 0:00:04]}  Kd6 {[%clk 0:00:25]} 52. c4 {[%clk 0:00:05]}  Kc5 {[%clk 0:00:26]} 53. a6 {[%clk 0:00:05]}  Rxc4 {[%clk 0:00:26]} 54. Ka3 {[%clk 0:00:04]}  Rb4 {[%clk 0:00:25]} 55. Ka2 {[%clk 0:00:05]}  Rb6 {[%clk 0:00:26]} 56. Ka1 {[%clk 0:00:06]}  Rxa6+ {[%clk 0:00:27]} 57. Kb2 {[%clk 0:00:05]}  Rb6+ {[%clk 0:00:27]} 58. Kc2 {[%clk 0:00:06]}  Kd4 {[%clk 0:00:26]} 59. Kd2 {[%clk 0:00:07]}  Rb3 {[%clk 0:00:26]} 60. Ke2 {[%clk 0:00:07]}  a5 {[%clk 0:00:25]} 61. Kf2 {[%clk 0:00:08]}  a4 {[%clk 0:00:26]} 62. Ke1 {[%clk 0:00:08]}  a3 {[%clk 0:00:26]} 63. Kd2 {[%clk 0:00:09]}  Rb2+ {[%clk 0:00:26]} 64. Kc1 {[%clk 0:00:09]}  Rh2 {[%clk 0:00:26]} 65. Kb1 {[%clk 0:00:09]}  g5 {[%clk 0:00:25]} 66. Ka1 {[%clk 0:00:10]}  g4 {[%clk 0:00:26]} 67. Kb1 {[%clk 0:00:11]}  g3 {[%clk 0:00:27]} 68. Ka1 {[%clk 0:00:12]}  Rf2 {[%clk 0:00:27]} 69. Kb1 {[%clk 0:00:13]}  g2 {[%clk 0:00:27]} 70. Kc1 {[%clk 0:00:13]}  g1=Q# {[%clk 0:00:28]} 0-1


[Site "https://www.chess.com"]

[Event "Titled Tuesday Blitz March 14 Late 2023"]
[White "Eliteplayer3"]
[Black "Gamage, Wanshini Vidusama"]
[BlackFideId "9953752"]
[WhiteElo "2111"]
[BlackElo "2261"]
[Result "1-0"]
[Round "09"]
[TimeControl "180+2"]
[Date "2023.03.14"]
[WhiteClock "0:00:08"]
[BlackClock "0:00:04"]

1. d4 {[%clk 0:03:00]}  Nf6 {[%clk 0:02:59]} 2. Bf4 {[%clk 0:02:57]}  d5 {[%clk 0:02:58]} 3. Nf3 {[%clk 0:02:56]}  c5 {[%clk 0:02:58]} 4. e3 {[%clk 0:02:56]}  Nc6 {[%clk 0:02:57]} 5. c3 {[%clk 0:02:55]}  Qb6 {[%clk 0:02:57]} 6. dxc5 {[%clk 0:02:53]}  Qxb2 {[%clk 0:02:52]} 7. Nbd2 {[%clk 0:02:52]}  Qxc3 {[%clk 0:02:50]} 8. Bc7 {[%clk 0:02:37]}  e6 {[%clk 0:02:34]} 9. Rc1 {[%clk 0:02:34]}  Qb4 {[%clk 0:02:27]} 10. a4 {[%clk 0:02:14]}  Bxc5 {[%clk 0:02:16]} 11. Bb5 {[%clk 0:02:14]}  O-O {[%clk 0:02:15]} 12. h3 {[%clk 0:02:06]}  Bd7 {[%clk 0:02:12]} 13. Rb1 {[%clk 0:02:03]}  Qc3 {[%clk 0:02:05]} 14. Rb3 {[%clk 0:02:01]}  Bb4 {[%clk 0:01:37]} 15. Rxc3 {[%clk 0:01:59]}  Bxc3 {[%clk 0:01:38]} 16. O-O {[%clk 0:01:57]}  Rfc8 {[%clk 0:01:36]} 17. Bg3 {[%clk 0:01:51]}  a6 {[%clk 0:01:35]} 18. Bd3 {[%clk 0:01:47]}  Nb4 {[%clk 0:01:33]} 19. Qb1 {[%clk 0:01:44]}  Bxa4 {[%clk 0:01:24]} 20. Rc1 {[%clk 0:01:13]}  b5 {[%clk 0:01:04]} 21. Ne5 {[%clk 0:01:04]}  Bxd2 {[%clk 0:00:51]} 22. Rf1 {[%clk 0:00:54]}  Bc3 {[%clk 0:00:33]} 23. Ng4 {[%clk 0:00:52]}  Nxd3 {[%clk 0:00:29]} 24. Nxf6+ {[%clk 0:00:50]}  Bxf6 {[%clk 0:00:29]} 25. Qxd3 {[%clk 0:00:50]}  Bc2 {[%clk 0:00:27]} 26. Qa3 {[%clk 0:00:36]}  a5 {[%clk 0:00:20]} 27. Rc1 {[%clk 0:00:16]}  b4 {[%clk 0:00:19]} 28. Qa2 {[%clk 0:00:14]}  b3 {[%clk 0:00:18]} 29. Qa3 {[%clk 0:00:13]}  b2 {[%clk 0:00:17]} 30. Rf1 {[%clk 0:00:13]}  b1=Q {[%clk 0:00:16]} 31. Rxb1 {[%clk 0:00:14]}  Bxb1 {[%clk 0:00:17]} 32. Qb3 {[%clk 0:00:14]}  Bc2 {[%clk 0:00:15]} 33. Qb7 {[%clk 0:00:13]}  a4 {[%clk 0:00:15]} 34. Bd6 {[%clk 0:00:12]}  a3 {[%clk 0:00:15]} 35. Bxa3 {[%clk 0:00:12]}  Rcb8 {[%clk 0:00:11]} 36. Qc7 {[%clk 0:00:11]}  Bd8 {[%clk 0:00:10]} 37. Qd6 {[%clk 0:00:10]}  Rxa3 {[%clk 0:00:06]} 38. Qxa3 {[%clk 0:00:09]}  Bf6 {[%clk 0:00:05]} 39. Qd6 {[%clk 0:00:09]}  Rc8 {[%clk 0:00:03]} 40. Qd7 {[%clk 0:00:08]}  Bg6 {[%clk 0:00:04]} 41. Qxc8+ {[%clk 0:00:08]} 1-0


[Site "https://www.chess.com"]

[Event "Titled Tuesday Blitz March 14 Late 2023"]
[White "Jenkins, Drake"]
[Black "Hartikainen, Jarmo"]
[WhiteFideId "2022397"]
[BlackFideId "503134"]
[WhiteElo "2237"]
[BlackElo "2170"]
[Result "1-0"]
[Round "09"]
[TimeControl "180+2"]
[Date "2023.03.14"]
[WhiteClock "0:01:41"]
[BlackClock "0:00:04"]

1. Nf3 {[%clk 0:03:00]}  Nf6 {[%clk 0:02:59]} 2. g3 {[%clk 0:03:00]}  g6 {[%clk 0:02:59]} 3. c4 {[%clk 0:03:00]}  c5 {[%clk 0:02:56]} 4. d4 {[%clk 0:03:00]}  Bg7 {[%clk 0:02:48]} 5. Bg2 {[%clk 0:02:58]}  O-O {[%clk 0:02:48]} 6. Nc3 {[%clk 0:02:59]}  e6 {[%clk 0:02:38]} 7. O-O {[%clk 0:02:54]}  cxd4 {[%clk 0:02:21]} 8. Nxd4 {[%clk 0:02:54]}  a6 {[%clk 0:02:20]} 9. b3 {[%clk 0:02:47]}  Nc6 {[%clk 0:02:07]} 10. Bb2 {[%clk 0:02:47]}  Qc7 {[%clk 0:01:54]} 11. Rc1 {[%clk 0:02:46]}  Nxd4 {[%clk 0:01:36]} 12. Qxd4 {[%clk 0:02:44]}  Rb8 {[%clk 0:01:12]} 13. Ba3 {[%clk 0:02:43]}  Nd5 {[%clk 0:01:00]} 14. Nxd5 {[%clk 0:02:36]}  exd5 {[%clk 0:00:51]} 15. Qxd5 {[%clk 0:02:36]}  b6 {[%clk 0:00:19]} 16. Bd6 {[%clk 0:02:25]}  Qa7 {[%clk 0:00:17]} 17. Bxb8 {[%clk 0:02:22]}  Qxb8 {[%clk 0:00:16]} 18. c5 {[%clk 0:02:16]}  bxc5 {[%clk 0:00:16]} 19. Qxc5 {[%clk 0:02:13]}  Bb7 {[%clk 0:00:14]} 20. Bxb7 {[%clk 0:02:09]}  Qxb7 {[%clk 0:00:14]} 21. Rfd1 {[%clk 0:02:07]}  Re8 {[%clk 0:00:14]} 22. e3 {[%clk 0:02:01]}  Qf3 {[%clk 0:00:13]} 23. Rxd7 {[%clk 0:01:57]}  Bh6 {[%clk 0:00:13]} 24. Rd3 {[%clk 0:01:48]}  Qe2 {[%clk 0:00:13]} 25. Qc2 {[%clk 0:01:47]}  Qf3 {[%clk 0:00:12]} 26. Rcd1 {[%clk 0:01:46]}  Bg7 {[%clk 0:00:10]} 27. Rd8 {[%clk 0:01:45]}  Rxd8 {[%clk 0:00:03]} 28. Rxd8+ {[%clk 0:01:43]}  Bf8 {[%clk 0:00:04]} 29. Qc8 {[%clk 0:01:42]}  Qd1+ {[%clk 0:00:04]} 30. Rxd1 {[%clk 0:01:41]} 1-0


[Site "https://www.chess.com"]

[Event "Titled Tuesday Blitz March 14 Late 2023"]
[White "Bluebaum, Matthias"]
[Black "Duda, Jan-Krzysztof"]
[WhiteFideId "24651516"]
[BlackFideId "1170546"]
[WhiteElo "2638"]
[BlackElo "2790"]
[Result "1/2-1/2"]
[Round "10"]
[TimeControl "180+2"]
[Date "2023.03.14"]
[WhiteClock "0:01:56"]
[BlackClock "0:00:42"]

1. d4 {[%clk 0:03:00]}  Nf6 {[%clk 0:02:58]} 2. c4 {[%clk 0:03:01]}  e6 {[%clk 0:02:57]} 3. Nc3 {[%clk 0:03:02]}  Bb4 {[%clk 0:02:57]} 4. e3 {[%clk 0:03:02]}  c5 {[%clk 0:02:56]} 5. Bd3 {[%clk 0:03:00]}  Nc6 {[%clk 0:02:53]} 6. Ne2 {[%clk 0:03:00]}  d6 {[%clk 0:02:41]} 7. O-O {[%clk 0:02:53]}  O-O {[%clk 0:02:39]} 8. dxc5 {[%clk 0:02:44]}  dxc5 {[%clk 0:02:33]} 9. b3 {[%clk 0:02:44]}  Ne5 {[%clk 0:02:21]} 10. Bc2 {[%clk 0:02:44]}  Bd7 {[%clk 0:02:21]} 11. Bb2 {[%clk 0:02:38]}  Bc6 {[%clk 0:02:21]} 12. f3 {[%clk 0:02:32]}  Qc7 {[%clk 0:02:14]} 13. Qe1 {[%clk 0:02:28]}  Ba5 {[%clk 0:02:03]} 14. Qg3 {[%clk 0:02:21]}  Ng6 {[%clk 0:02:00]} 15. Qxc7 {[%clk 0:02:09]}  Bxc7 {[%clk 0:02:01]} 16. Rfd1 {[%clk 0:02:08]}  a6 {[%clk 0:01:59]} 17. a4 {[%clk 0:02:02]}  Rfd8 {[%clk 0:01:36]} 18. Ng3 {[%clk 0:02:01]}  Ne7 {[%clk 0:01:25]} 19. Nce4 {[%clk 0:02:00]}  Nxe4 {[%clk 0:01:24]} 20. Nxe4 {[%clk 0:02:01]}  b6 {[%clk 0:01:10]} 21. Bc3 {[%clk 0:02:01]}  a5 {[%clk 0:01:07]} 22. Ng3 {[%clk 0:01:55]}  f6 {[%clk 0:01:01]} 23. Rxd8+ {[%clk 0:01:54]}  Rxd8 {[%clk 0:01:00]} 24. Rd1 {[%clk 0:01:55]}  Rxd1+ {[%clk 0:00:52]} 25. Bxd1 {[%clk 0:01:56]}  Kf7 {[%clk 0:00:52]} 26. Bc2 {[%clk 0:01:54]}  h6 {[%clk 0:00:51]} 27. Kf2 {[%clk 0:01:55]}  Bd6 {[%clk 0:00:42]} 28. h3 {[%clk 0:01:54]}  Bc7 {[%clk 0:00:42]} 29. Bd3 {[%clk 0:01:54]}  Bd6 {[%clk 0:00:42]} 30. Bc2 {[%clk 0:01:54]}  Bc7 {[%clk 0:00:42]} 31. Bd3 {[%clk 0:01:55]}  Bd6 {[%clk 0:00:42]} 32. Bc2 {[%clk 0:01:56]} 1/2-1/2


[Site "https://www.chess.com"]

[Event "Titled Tuesday Blitz March 14 Late 2023"]
[White "Svane, Rasmus"]
[Black "Nakamura, Hikaru"]
[WhiteFideId "4657101"]
[BlackFideId "2016192"]
[WhiteElo "2597"]
[BlackElo "2879"]
[Result "1-0"]
[Round "10"]
[TimeControl "180+2"]
[Date "2023.03.14"]
[WhiteClock "0:00:13"]
[BlackClock "0:00:11"]

1. Nf3 {[%clk 0:03:00]}  d6 {[%clk 0:02:54]} 2. d4 {[%clk 0:03:00]}  g6 {[%clk 0:02:53]} 3. e4 {[%clk 0:02:59]}  Bg7 {[%clk 0:02:49]} 4. Bd3 {[%clk 0:03:00]}  e5 {[%clk 0:02:49]} 5. c3 {[%clk 0:02:49]}  Nc6 {[%clk 0:02:49]} 6. dxe5 {[%clk 0:02:42]}  dxe5 {[%clk 0:02:47]} 7. O-O {[%clk 0:02:42]}  Nf6 {[%clk 0:02:47]} 8. h3 {[%clk 0:02:41]}  O-O {[%clk 0:02:46]} 9. Qe2 {[%clk 0:02:42]}  Qe7 {[%clk 0:02:41]} 10. b4 {[%clk 0:02:34]}  Rd8 {[%clk 0:02:41]} 11. Rd1 {[%clk 0:02:28]}  h6 {[%clk 0:02:38]} 12. Nbd2 {[%clk 0:02:18]}  Nh5 {[%clk 0:02:34]} 13. Nc4 {[%clk 0:02:10]}  a6 {[%clk 0:02:23]} 14. a4 {[%clk 0:02:09]}  Be6 {[%clk 0:02:23]} 15. Be3 {[%clk 0:01:53]}  Nf4 {[%clk 0:01:46]} 16. Bxf4 {[%clk 0:01:53]}  exf4 {[%clk 0:01:47]} 17. Rac1 {[%clk 0:01:51]}  Bxc4 {[%clk 0:01:27]} 18. Bxc4 {[%clk 0:01:49]}  Rxd1+ {[%clk 0:01:28]} 19. Qxd1 {[%clk 0:01:43]}  Qxe4 {[%clk 0:01:28]} 20. Bd5 {[%clk 0:01:43]}  Qe7 {[%clk 0:01:26]} 21. Bxc6 {[%clk 0:01:42]}  bxc6 {[%clk 0:01:26]} 22. Qd2 {[%clk 0:01:43]}  g5 {[%clk 0:01:23]} 23. Qd3 {[%clk 0:01:35]}  a5 {[%clk 0:01:13]} 24. Re1 {[%clk 0:01:22]}  Qd6 {[%clk 0:01:10]} 25. Qc4 {[%clk 0:01:00]}  Qd5 {[%clk 0:00:45]} 26. Re4 {[%clk 0:00:54]}  axb4 {[%clk 0:00:42]} 27. cxb4 {[%clk 0:00:35]}  Rxa4 {[%clk 0:00:42]} 28. Re8+ {[%clk 0:00:34]}  Bf8 {[%clk 0:00:42]} 29. Qc3 {[%clk 0:00:30]}  Qd1+ {[%clk 0:00:36]} 30. Kh2 {[%clk 0:00:26]}  Qd6 {[%clk 0:00:32]} 31. Ne5 {[%clk 0:00:21]}  f3 {[%clk 0:00:20]} 32. Qxf3 {[%clk 0:00:15]}  Qd5 {[%clk 0:00:17]} 33. Qf6 {[%clk 0:00:13]}  c5 {[%clk 0:00:11]} 34. Rxf8+ {[%clk 0:00:13]}  Kxf8 {[%clk 0:00:11]} 35. Ng6+ {[%clk 0:00:13]} 1-0


[Site "https://www.chess.com"]

[Event "Titled Tuesday Blitz March 14 Late 2023"]
[White "Pranav, V"]
[Black "Caruana, Fabiano"]
[WhiteFideId "25060783"]
[BlackFideId "2020009"]
[WhiteElo "2500"]
[BlackElo "2818"]
[Result "0-1"]
[Round "10"]
[TimeControl "180+2"]
[Date "2023.03.14"]
[WhiteClock "0:00:02"]
[BlackClock "0:00:25"]

1. e4 {[%clk 0:03:00]}  e5 {[%clk 0:02:59]} 2. Nf3 {[%clk 0:03:01]}  Nc6 {[%clk 0:02:59]} 3. Bb5 {[%clk 0:03:01]}  a6 {[%clk 0:03:00]} 4. Ba4 {[%clk 0:03:01]}  Nf6 {[%clk 0:03:00]} 5. O-O {[%clk 0:03:02]}  b5 {[%clk 0:03:01]} 6. Bb3 {[%clk 0:03:02]}  Bc5 {[%clk 0:03:02]} 7. c3 {[%clk 0:03:02]}  d6 {[%clk 0:03:02]} 8. d4 {[%clk 0:03:02]}  Bb6 {[%clk 0:03:02]} 9. a4 {[%clk 0:03:03]}  Rb8 {[%clk 0:03:02]} 10. Qd3 {[%clk 0:03:03]}  Bd7 {[%clk 0:03:00]} 11. Bg5 {[%clk 0:02:57]}  h6 {[%clk 0:02:58]} 12. Bh4 {[%clk 0:02:57]}  g5 {[%clk 0:02:53]} 13. Bg3 {[%clk 0:02:49]}  Nh5 {[%clk 0:02:53]} 14. axb5 {[%clk 0:02:10]}  axb5 {[%clk 0:02:51]} 15. dxe5 {[%clk 0:01:32]}  Nxg3 {[%clk 0:02:50]} 16. hxg3 {[%clk 0:01:32]}  g4 {[%clk 0:02:50]} 17. Nh4 {[%clk 0:01:23]}  Nxe5 {[%clk 0:02:50]} 18. Qe2 {[%clk 0:01:23]}  Qg5 {[%clk 0:02:46]} 19. Na3 {[%clk 0:01:17]}  O-O {[%clk 0:02:42]} 20. Nc2 {[%clk 0:01:17]}  Kh8 {[%clk 0:02:29]} 21. Nb4 {[%clk 0:01:16]}  Be6 {[%clk 0:02:14]} 22. Bd5 {[%clk 0:00:53]}  Rbe8 {[%clk 0:01:30]} 23. Qxb5 {[%clk 0:00:43]}  Bd7 {[%clk 0:01:29]} 24. Qe2 {[%clk 0:00:37]}  f5 {[%clk 0:01:29]} 25. exf5 {[%clk 0:00:28]}  Bxf5 {[%clk 0:01:29]} 26. Qd1 {[%clk 0:00:19]}  Bh7 {[%clk 0:01:24]} 27. b3 {[%clk 0:00:17]}  Rxf2 {[%clk 0:01:01]} 28. Rxf2 {[%clk 0:00:17]}  Qe3 {[%clk 0:01:02]} 29. Kh2 {[%clk 0:00:15]}  Qxf2 {[%clk 0:01:01]} 30. Qf1 {[%clk 0:00:13]}  Rf8 {[%clk 0:00:54]} 31. Qxf2 {[%clk 0:00:12]}  Rxf2 {[%clk 0:00:55]} 32. Nc6 {[%clk 0:00:08]}  Nxc6 {[%clk 0:00:53]} 33. Bxc6 {[%clk 0:00:09]}  Kg7 {[%clk 0:00:48]} 34. Bd7 {[%clk 0:00:08]}  h5 {[%clk 0:00:48]} 35. Be8 {[%clk 0:00:08]}  Kh6 {[%clk 0:00:47]} 36. Re1 {[%clk 0:00:09]}  Bg8 {[%clk 0:00:44]} 37. c4 {[%clk 0:00:07]}  d5 {[%clk 0:00:43]} 38. Bb5 {[%clk 0:00:05]}  d4 {[%clk 0:00:36]} 39. Re8 {[%clk 0:00:05]}  Kg7 {[%clk 0:00:34]} 40. Rd8 {[%clk 0:00:04]}  Be6 {[%clk 0:00:30]} 41. Re8 {[%clk 0:00:02]}  Kf7 {[%clk 0:00:28]} 42. Rh8 {[%clk 0:00:01]}  d3 {[%clk 0:00:26]} 43. Rd8 {[%clk 0:00:01]}  d2 {[%clk 0:00:25]} 44. c5 {[%clk 0:00:01]}  Bxc5 {[%clk 0:00:25]} 45. Bc4 {[%clk 0:00:01]}  Bxc4 {[%clk 0:00:24]} 46. bxc4 {[%clk 0:00:02]}  Rf1 {[%clk 0:00:24]} 47. Rxd2 {[%clk 0:00:01]}  Bg1+ {[%clk 0:00:24]} 48. Kh1 {[%clk 0:00:02]}  Be3+ {[%clk 0:00:25]} 0-1


[Site "https://www.chess.com"]

[Event "Titled Tuesday Blitz March 14 Late 2023"]
[White "Deac, Bogdan-Daniel"]
[Black "Van Foreest, Jorden"]
[WhiteFideId "1226380"]
[BlackFideId "1039784"]
[WhiteElo "2649"]
[BlackElo "2633"]
[Result "1-0"]
[Round "10"]
[TimeControl "180+2"]
[Date "2023.03.14"]
[WhiteClock "0:00:07"]
[BlackClock "0:00:12"]

1. d4 {[%clk 0:03:00]}  d5 {[%clk 0:03:00]} 2. c4 {[%clk 0:03:00]}  c6 {[%clk 0:03:00]} 3. Nf3 {[%clk 0:03:00]}  Nf6 {[%clk 0:03:01]} 4. Nc3 {[%clk 0:03:01]}  dxc4 {[%clk 0:03:00]} 5. a4 {[%clk 0:03:00]}  e6 {[%clk 0:03:00]} 6. e3 {[%clk 0:02:57]}  c5 {[%clk 0:03:00]} 7. Bxc4 {[%clk 0:02:58]}  Nc6 {[%clk 0:03:01]} 8. O-O {[%clk 0:02:57]}  Be7 {[%clk 0:03:01]} 9. Qe2 {[%clk 0:02:55]}  O-O {[%clk 0:03:01]} 10. Rd1 {[%clk 0:02:54]}  Bd7 {[%clk 0:03:02]} 11. e4 {[%clk 0:02:34]}  Nxd4 {[%clk 0:02:59]} 12. Nxd4 {[%clk 0:02:34]}  cxd4 {[%clk 0:03:00]} 13. Rxd4 {[%clk 0:02:31]}  Qb6 {[%clk 0:03:00]} 14. Rd1 {[%clk 0:02:26]}  Bc6 {[%clk 0:02:57]} 15. a5 {[%clk 0:02:17]}  Qb4 {[%clk 0:02:53]} 16. Bd2 {[%clk 0:02:10]}  Qc5 {[%clk 0:02:39]} 17. Be3 {[%clk 0:02:03]}  Qb4 {[%clk 0:02:34]} 18. Bd2 {[%clk 0:01:41]}  Qc5 {[%clk 0:02:33]} 19. a6 {[%clk 0:01:41]}  bxa6 {[%clk 0:02:22]} 20. Rxa6 {[%clk 0:01:40]}  Rfd8 {[%clk 0:02:12]} 21. Be3 {[%clk 0:01:30]}  Rxd1+ {[%clk 0:01:35]} 22. Nxd1 {[%clk 0:01:31]}  Qd6 {[%clk 0:01:34]} 23. e5 {[%clk 0:01:28]}  Qd7 {[%clk 0:01:35]} 24. exf6 {[%clk 0:01:23]}  Bxf6 {[%clk 0:01:36]} 25. Qd2 {[%clk 0:01:00]}  Qb7 {[%clk 0:01:33]} 26. f3 {[%clk 0:00:47]}  Rd8 {[%clk 0:01:23]} 27. Qe2 {[%clk 0:00:44]}  Bd4 {[%clk 0:01:07]} 28. Bxd4 {[%clk 0:00:43]}  Rxd4 {[%clk 0:01:08]} 29. Nf2 {[%clk 0:00:26]}  h6 {[%clk 0:00:50]} 30. Ra1 {[%clk 0:00:22]}  Qb6 {[%clk 0:00:49]} 31. b3 {[%clk 0:00:22]}  a5 {[%clk 0:00:48]} 32. Qe3 {[%clk 0:00:18]}  Qd8 {[%clk 0:00:39]} 33. Qc3 {[%clk 0:00:14]}  Qf6 {[%clk 0:00:25]} 34. Bf1 {[%clk 0:00:12]}  h5 {[%clk 0:00:14]} 35. Qxc6 {[%clk 0:00:11]}  Rd2 {[%clk 0:00:14]} 36. Rd1 {[%clk 0:00:09]}  Rb2 {[%clk 0:00:12]} 37. Qc8+ {[%clk 0:00:08]}  Kh7 {[%clk 0:00:12]} 38. Qc4 {[%clk 0:00:08]}  g6 {[%clk 0:00:12]} 39. Ne4 {[%clk 0:00:07]}  Qf4 {[%clk 0:00:12]} 40. Qd4 {[%clk 0:00:07]} 1-0


[Site "https://www.chess.com"]